[Event "Queens Festival Final Team 2022"]
[Site "Tornelo"]
[Date "2022.06.26"]
[Round "10.6"]
[White "Shohradowa, Lala"]
[Black "Masoumi, Sahar"]
[Result "0-1"]
[ECO "E62"]
[WhiteElo "1856"]
[BlackElo "2004"]
[Annotator "NA RC"]
[PlyCount "138"]
[EventDate "2022.06.24"]
[EventType "team-tourn"]
[EventCountry "NET"]
[SourceTitle "playchess.com"]
[Source "ChessBase"]
[SourceQuality "1"]
[WhiteTeam "Turkmenistan"]
[BlackTeam "Iran"]
[WhiteTeamCountry "TKM"]
[BlackTeamCountry "IRI"]
[TimeControl "180+2"]

1. d4 {[%emt 0:00:02]} Nf6 {[%emt 0:00:04]} 2. c4 {[%emt 0:00:02]} g6 {[%emt 0:00:01]} 3. g3 {[%emt 0:00:02]} Bg7 {[%emt 0:00:01]} 4. Bg2 {[%emt 0:00:02]} d6 {[%emt 0:00:01]} 5. Nc3 {[%emt 0:00:02]} O-O {[%emt 0:00:02]} 6. Nf3 {[%emt 0:00:03]} Nc6 {[%emt 0:00:01]} 7. O-O {[%emt 0:00:02]} Bf5 {[%emt 0:00:02]} 8. a3 {[%emt 0:00:08]} Ne4 {[%emt 0:00:02]} 9. Nh4 {[%emt 0:00:14]} Nxc3 {[%emt 0:00:03]} 10. bxc3 {[%emt 0:00:03]} Bd7 {[%emt 0:00:01]} 11. Rb1 {[%emt 0:00:03]} Na5 {[%emt 0:00:07]} 12. Nf3 {[%emt 0:00:12]} Nxc4 {[%emt 0:00:19]} 13. Nd2 {[%emt 0:00:12]} Nxd2 {[%emt 0:00:09]} 14. Bxd2 {[%emt 0:00:02]} Bc6 {[%emt 0:00:01]} 15. d5 {[%emt 0:00:03]} Bd7 {[%emt 0:00:04]} 16. Rxb7 {[%emt 0:00:02]} a6 {[%emt 0:00:13]} 17. Qb3 {[%emt 0:00:04]} Qc8 {[%emt 0:00:06]} 18. Rb1 {[%emt 0:00:04]} Bb5 {[%emt 0:00:02]} 19. Rxb5 {[%emt 0:00:34]} axb5 {[%emt 0:00:03]} 20. Qxb5 {[%emt 0:00:04]} Rxa3 {[%emt 0:00:05]} 21. Qc6 {[%emt 0:00:06]} Qa6 {[%emt 0:00:08]} 22. Qxc7 {[%emt 0:00:09]} Qxe2 {[%emt 0:00:12]} 23. Be1 {[%emt 0:00:20]} Qc2 {[%emt 0:00:19]} 24. Qb7 {[%emt 0:00:13]} Ra2 {[%emt 0:00:08]} 25. Qb3 {[%emt 0:00:20]} Qxb3 {[%emt 0:00:05]} 26. Rxb3 {[%emt 0:00:02]} Ra1 {[%emt 0:00:02]} 27. Kf1 {[%emt 0:00:02]} Rc8 {[%emt 0:00:03]} 28. Ke2 {[%emt 0:00:03]} Bf6 {[%emt 0:00:11]} 29. Bd2 {[%emt 0:00:03]} Ra2 {[%emt 0:00:02]} 30. Kd3 {[%emt 0:00:04]} Ra1 {[%emt 0:00:06]} 31. Bh3 {[%emt 0:00:03]} Rca8 {[%emt 0:00:09]} 32. Bd7 {[%emt 0:00:05]} Kg7 {[%emt 0:00:03]} 33. Bc6 {[%emt 0:00:06]} R8a3 {[%emt 0:00:02]} 34. Rb8 {[%emt 0:00:04]} Rh1 {[%emt 0:00:10]} 35. h4 {[%emt 0:00:05]} Rh2 {[%emt 0:00:02]} 36. f3 {[%emt 0:00:08]} Ra2 {[%emt 0:00:05]} 37. Be3 {[%emt 0:00:03]} Rac2 {[%emt 0:00:05]} 38. Rb3 {[%emt 0:00:04]} Ra2 {[%emt 0:00:10]} 39. Bb5 {[%emt 0:00:03]} Rhb2 {[%emt 0:00:04]} 40. Rxb2 {[%emt 0:00:05]} Rxb2 {[%emt 0:00:01]} 41. Bc6 {[%emt 0:00:05]} Rg2 {[%emt 0:00:05]} 42. Bf4 {[%emt 0:00:03]} h6 {[%emt 0:00:03]} 43. Bd7 {[%emt 0:00:03]} g5 {[%emt 0:00:01]} 44. hxg5 {[%emt 0:00:02]} hxg5 {[%emt 0:00:02]} 45. Be3 {[%emt 0:00:02]} Rxg3 {[%emt 0:00:01]} 46. Bg4 {[%emt 0:00:02]} Rg2 {[%emt 0:00:01]} 47. c4 {[%emt 0:00:02]} Ra2 {[%emt 0:00:03]} 48. c5 {[%emt 0:00:02]} Ra3+ {[%emt 0:00:03]} 49. Ke4 {[%emt 0:00:03]} dxc5 {[%emt 0:00:04]} 50. Bxc5 {[%emt 0:00:02]} Ra4+ {[%emt 0:00:01]} 51. Kd3 {[%emt 0:00:02]} Ra5 {[%emt 0:00:02]} 52. Kc4 {[%emt 0:00:02]} Kg6 {[%emt 0:00:02]} 53. Bd7 {[%emt 0:00:03]} Be5 {[%emt 0:00:05]} 54. Be8 {[%emt 0:00:04]} Bd6 {[%emt 0:00:04]} 55. Bb6 {[%emt 0:00:02]} Ra1 {[%emt 0:00:03]} 56. Kb5 {[%emt 0:00:03]} Rf1 {[%emt 0:00:02]} 57. Kc6 {[%emt 0:00:03]} Rxf3 {[%emt 0:00:02]} 58. Bd7 {[%emt 0:00:02]} Rc3+ {[%emt 0:00:04]} 59. Kb7 {[%emt 0:00:02]} Rc4 {[%emt 0:00:02]} 60. Bb5 {[%emt 0:00:03]} Rb4 {[%emt 0:00:02]} 61. Kc6 {[%emt 0:00:02]} g4 {[%emt 0:00:03]} 62. Bd3+ {[%emt 0:00:01]} f5 {[%emt 0:00:03]} 63. Ba5 {[%emt 0:00:02]} Ra4 {[%emt 0:00:04]} 64. Be1 {[%emt 0:00:03]} g3 {[%emt 0:00:01]} 65. Bxg3 {[%emt 0:00:02]} Bxg3 {[%emt 0:00:03]} 66. Kd7 {[%emt 0:00:02]} Bd6 {[%emt 0:00:01]} 67. Ke6 {[%emt 0:00:01]} Rf4 {[%emt 0:00:07]} 68. Bc2 {[%emt 0:00:02]} Kg5 {[%emt 0:00:02]} 69. Bd3 {[%emt 0:00:02]} Re4+ {[%emt 0:00:02]} 0-1

[Event "Queens Festival Final Team 2022"]
[Site "Tornelo"]
[Date "2022.06.26"]
[Round "10.6"]
[White "Davari, Sara"]
[Black "Agajanova, Meryem"]
[Result "1-0"]
[ECO "C01"]
[WhiteElo "1674"]
[BlackElo "1783"]
[Annotator "NA RC"]
[PlyCount "71"]
[EventDate "2022.06.24"]
[EventType "team-tourn"]
[EventCountry "NET"]
[SourceTitle "playchess.com"]
[Source "ChessBase"]
[SourceQuality "1"]
[WhiteTeam "Iran"]
[BlackTeam "Turkmenistan"]
[WhiteTeamCountry "IRI"]
[BlackTeamCountry "TKM"]
[TimeControl "180+2"]

1. e4 {[%emt 0:00:02]} e6 {[%emt 0:00:04]} 2. d4 {[%emt 0:00:02]} d5 {[%emt 0:00:01]} 3. Nc3 {[%emt 0:00:01]} Bb4 {[%emt 0:00:02]} 4. exd5 {[%emt 0:00:01]} exd5 {[%emt 0:00:02]} 5. Bd3 {[%emt 0:00:02]} Nf6 {[%emt 0:00:01]} 6. Nge2 {[%emt 0:00:02]} O-O {[%emt 0:00:02]} 7. O-O {[%emt 0:00:02]} c6 {[%emt 0:00:03]} 8. Bg5 {[%emt 0:00:04]} Bg4 {[%emt 0:00:06]} 9. Re1 {[%emt 0:00:02]} Nbd7 {[%emt 0:00:03]} 10. Qd2 {[%emt 0:00:04]} Re8 {[%emt 0:00:14]} 11. a3 {[%emt 0:00:03]} Bxe2 {[%emt 0:00:08]} 12. Rxe2 {[%emt 0:00:08]} Rxe2 {[%emt 0:00:05]} 13. Qxe2 {[%emt 0:00:05]} Bd6 {[%emt 0:00:07]} 14. Qf3 {[%emt 0:00:07]} Qc7 {[%emt 0:00:03]} 15. h3 {[%emt 0:00:12]} Re8 {[%emt 0:00:02]} 16. Bf5 {[%emt 0:00:09]} h6 {[%emt 0:00:10]} 17. Bh4 {[%emt 0:00:12]} Qb6 {[%emt 0:00:13]} 18. Bxd7 {[%emt 0:00:15]} Nxd7 {[%emt 0:00:04]} 19. Qg4 {[%emt 0:00:12]} Qxb2 {[%emt 0:00:36]} 20. Rf1 {[%emt 0:00:12]} Nf8 {[%emt 0:00:37]} 21. Ne2 {[%emt 0:00:27]} Qxc2 {[%emt 0:00:07]} 22. Ng3 {[%emt 0:00:05]} Ng6 {[%emt 0:00:08]} 23. Nf5 {[%emt 0:00:16]} Bf8 {[%emt 0:00:09]} 24. Bg3 {[%emt 0:00:09]} Qe4 {[%emt 0:00:02]} 25. f4 {[%emt 0:00:06]} Qd3 {[%emt 0:00:22]} 26. h4 {[%emt 0:00:12]} Kh8 {[%emt 0:00:07]} 27. h5 {[%emt 0:00:04]} Ne7 {[%emt 0:00:02]} 28. Nd6 {[%emt 0:00:10]} Qxd4+ {[%emt 0:00:05]} 29. Bf2 {[%emt 0:00:04]} Qd3 {[%emt 0:00:07]} 30. Nxe8 {[%emt 0:00:04]} Nf5 {[%emt 0:00:01]} 31. Re1 {[%emt 0:00:10]} Qc2 {[%emt 0:00:07]} 32. Nc7 {[%emt 0:00:05]} Nd6 {[%emt 0:00:01]} 33. Ne8 {[%emt 0:00:05]} Ne4 {[%emt 0:00:03]} 34. Qe2 {[%emt 0:00:04]} Qb3 {[%emt 0:00:03]} 35. Qf3 {[%emt 0:00:07]} Qb6 {[%emt 0:00:02]} 36. Bxb6 {[%emt 0:00:02]} 1-0

[Event "Queens Festival Final Team 2022"]
[Site "Tornelo"]
[Date "2022.06.26"]
[Round "10.6"]
[White "khezrian, Neda"]
[Black "Ovezdurdiyeva, Jemal"]
[Result "0-1"]
[ECO "E61"]
[WhiteElo "1056"]
[BlackElo "2061"]
[Annotator "NA RC"]
[PlyCount "66"]
[EventDate "2022.06.24"]
[EventType "team-tourn"]
[EventCountry "NET"]
[SourceTitle "playchess.com"]
[Source "ChessBase"]
[SourceQuality "1"]
[WhiteTeam "Iran"]
[BlackTeam "Turkmenistan"]
[WhiteTeamCountry "IRI"]
[BlackTeamCountry "TKM"]
[TimeControl "180+2"]

1. d4 {[%emt 0:00:02]} Nf6 {[%emt 0:00:05]} 2. Bf4 {[%emt 0:00:03]} g6 {[%emt 0:00:02]} 3. c4 {[%emt 0:00:05]} Bg7 {[%emt 0:00:03]} 4. Nc3 {[%emt 0:00:01]} d6 {[%emt 0:00:01]} 5. Nf3 {[%emt 0:00:05]} O-O {[%emt 0:00:02]} 6. e3 {[%emt 0:00:03]} Nbd7 {[%emt 0:00:02]} 7. Be2 {[%emt 0:00:07]} b6 {[%emt 0:00:02]} 8. O-O {[%emt 0:00:05]} Bb7 {[%emt 0:00:01]} 9. Bg3 {[%emt 0:00:04]} Ne4 {[%emt 0:00:05]} 10. Nxe4 {[%emt 0:00:09]} Bxe4 {[%emt 0:00:02]} 11. d5 {[%emt 0:00:16]} Bxb2 {[%emt 0:00:05]} 12. Rb1 {[%emt 0:00:10]} Bxb1 {[%emt 0:00:03]} 13. Qxb1 {[%emt 0:00:02]} Bg7 {[%emt 0:00:01]} 14. Re1 {[%emt 0:00:14]} Qc8 {[%emt 0:00:07]} 15. e4 {[%emt 0:00:07]} c5 {[%emt 0:00:06]} 16. Qc1 {[%emt 0:00:28]} a6 {[%emt 0:00:03]} 17. Bf4 {[%emt 0:00:05]} Qb7 {[%emt 0:00:08]} 18. Bh6 {[%emt 0:00:04]} b5 {[%emt 0:00:01]} 19. Bxg7 {[%emt 0:00:17]} Kxg7 {[%emt 0:00:01]} 20. Bd3 {[%emt 0:00:17]} bxc4 {[%emt 0:00:05]} 21. Bxc4 {[%emt 0:00:03]} Qb4 {[%emt 0:00:14]} 22. e5 {[%emt 0:00:17]} dxe5 {[%emt 0:00:20]} 23. Nxe5 {[%emt 0:00:04]} Nxe5 {[%emt 0:00:02]} 24. Rxe5 {[%emt 0:00:06]} Ra7 {[%emt 0:00:01]} 25. h3 {[%emt 0:00:09]} a5 {[%emt 0:00:10]} 26. Re1 {[%emt 0:00:21]} Rb7 {[%emt 0:00:06]} 27. Rd1 {[%emt 0:00:09]} Qb2 {[%emt 0:00:04]} 28. Qxb2+ {[%emt 0:00:02]} Rxb2 {[%emt 0:00:02]} 29. Re1 {[%emt 0:00:02]} Re8 {[%emt 0:00:05]} 30. Rc1 {[%emt 0:00:03]} Kf6 {[%emt 0:00:02]} 31. Bb3 {[%emt 0:00:02]} Rc8 {[%emt 0:00:05]} 32. Bc4 {[%emt 0:00:02]} a4 {[%emt 0:00:04]} 33. Re1 {[%emt 0:00:02]} Rc2 {[%emt 0:00:04]} 0-1

[Event "Queens Festival Final Team 2022"]
[Site "Tornelo"]
[Date "2022.06.26"]
[Round "11.1"]
[White "Ovezdurdiyeva, Jemal"]
[Black "Subramanian, Anusha"]
[Result "1-0"]
[ECO "D12"]
[WhiteElo "2061"]
[BlackElo "1671"]
[Annotator "NA RC"]
[PlyCount "59"]
[EventDate "2022.06.24"]
[EventType "team-tourn"]
[EventCountry "NET"]
[SourceTitle "playchess.com"]
[Source "ChessBase"]
[SourceQuality "1"]
[WhiteTeam "Turkmenistan"]
[BlackTeam "England"]
[WhiteTeamCountry "TKM"]
[BlackTeamCountry "ENG"]
[TimeControl "180+2"]

1. d4 {[%emt 0:00:02]} d5 {[%emt 0:00:04]} 2. c4 {[%emt 0:00:01]} c6 {[%emt 0:00:02]} 3. Nc3 {[%emt 0:00:03]} Nf6 {[%emt 0:00:02]} 4. e3 {[%emt 0:00:01]} Bf5 {[%emt 0:00:01]} 5. Nf3 {[%emt 0:00:02]} e6 {[%emt 0:00:02]} 6. h3 {[%emt 0:00:10]} dxc4 {[%emt 0:00:05]} 7. Bxc4 {[%emt 0:00:02]} b5 {[%emt 0:00:01]} 8. Bd3 {[%emt 0:00:06]} Bxd3 {[%emt 0:00:02]} 9. Qxd3 {[%emt 0:00:01]} Bb4 {[%emt 0:00:01]} 10. O-O {[%emt 0:00:01]} O-O {[%emt 0:00:04]} 11. a3 {[%emt 0:00:04]} Bxc3 {[%emt 0:00:01]} 12. bxc3 {[%emt 0:00:01]} Qb6 {[%emt 0:00:17]} 13. e4 {[%emt 0:00:03]} Nbd7 {[%emt 0:00:02]} 14. e5 {[%emt 0:00:01]} Nd5 {[%emt 0:00:02]} 15. Ng5 {[%emt 0:00:01]} g6 {[%emt 0:00:07]} 16. Ne4 {[%emt 0:00:02]} a5 {[%emt 0:00:51]} 17. Bh6 {[%emt 0:00:04]} Rfc8 {[%emt 0:00:03]} 18. Qf3 {[%emt 0:00:11]} Qd8 {[%emt 0:00:33]} 19. Nd6 {[%emt 0:00:02]} Qe7 {[%emt 0:00:13]} 20. Nxc8 {[%emt 0:00:04]} Rxc8 {[%emt 0:00:00]} 21. Rfc1 {[%emt 0:00:13]} c5 {[%emt 0:00:08]} 22. c4 {[%emt 0:00:01]} N5b6 {[%emt 0:00:10]} 23. cxb5 {[%emt 0:00:04]} cxd4 {[%emt 0:00:07]} 24. Rxc8+ {[%emt 0:00:05]} Nxc8 {[%emt 0:00:00]} 25. Qb7 {[%emt 0:00:09]} Ncb6 {[%emt 0:00:08]} 26. Rc1 {[%emt 0:00:05]} Qxa3 {[%emt 0:00:30]} 27. Rc6 {[%emt 0:00:06]} Qa1+ {[%emt 0:00:09]} 28. Kh2 {[%emt 0:00:03]} Qa3 {[%emt 0:00:05]} 29. Rxb6 {[%emt 0:00:03]} Qe7 {[%emt 0:00:06]} 30. Rd6 {[%emt 0:00:05]} 1-0

[Event "Queens Festival Final Team 2022"]
[Site "Tornelo"]
[Date "2022.06.26"]
[Round "11.1"]
[White "Grigoryan, Meri"]
[Black "Shohradowa, Lala"]
[Result "0-1"]
[ECO "E90"]
[WhiteElo "1993"]
[BlackElo "1856"]
[Annotator "NA RC"]
[PlyCount "54"]
[EventDate "2022.06.24"]
[EventType "team-tourn"]
[EventCountry "NET"]
[SourceTitle "playchess.com"]
[Source "ChessBase"]
[SourceQuality "1"]
[WhiteTeam "England"]
[BlackTeam "Turkmenistan"]
[WhiteTeamCountry "ENG"]
[BlackTeamCountry "TKM"]
[TimeControl "180+2"]

1. d4 {[%emt 0:00:02]} Nf6 {[%emt 0:00:05]} 2. c4 {[%emt 0:00:00]} c5 {[%emt 0:00:02]} 3. Nc3 {[%emt 0:00:01]} g6 {[%emt 0:00:04]} 4. d5 {[%emt 0:00:02]} Bg7 {[%emt 0:00:02]} 5. Nf3 {[%emt 0:00:00]} O-O {[%emt 0:00:03]} 6. e4 {[%emt 0:00:02]} d6 {[%emt 0:00:01]} 7. h3 {[%emt 0:00:01]} a6 {[%emt 0:00:02]} 8. g4 {[%emt 0:00:02]} Bd7 {[%emt 0:00:05]} 9. Nh4 {[%emt 0:00:08]} b5 {[%emt 0:00:05]} 10. Bd3 {[%emt 0:00:07]} bxc4 {[%emt 0:00:07]} 11. Bxc4 {[%emt 0:00:02]} Bb5 {[%emt 0:00:02]} 12. Bxb5 {[%emt 0:00:05]} axb5 {[%emt 0:00:02]} 13. f3 {[%emt 0:00:07]} b4 {[%emt 0:00:03]} 14. Ne2 {[%emt 0:00:02]} Nbd7 {[%emt 0:00:08]} 15. g5 {[%emt 0:00:10]} Nh5 {[%emt 0:00:02]} 16. f4 {[%emt 0:00:02]} f6 {[%emt 0:00:22]} 17. O-O {[%emt 0:00:03]} fxg5 {[%emt 0:00:03]} 18. fxg5 {[%emt 0:00:01]} Rxf1+ {[%emt 0:00:04]} 19. Qxf1 {[%emt 0:00:03]} Ne5 {[%emt 0:00:01]} 20. Nf4 {[%emt 0:00:07]} Nxf4 {[%emt 0:00:08]} 21. Bxf4 {[%emt 0:00:03]} Qd7 {[%emt 0:00:02]} 22. Qg2 {[%emt 0:00:10]} Rf8 {[%emt 0:00:05]} 23. Rf1 {[%emt 0:00:09]} Nd3 {[%emt 0:00:04]} 24. Bc1 {[%emt 0:00:16]} Rxf1+ {[%emt 0:00:04]} 25. Qxf1 {[%emt 0:00:03]} Nxc1 {[%emt 0:00:01]} 26. Qxc1 {[%emt 0:00:03]} Qxh3 {[%emt 0:00:02]} 27. Ng2 {[%emt 0:00:11]} Bd4+ {[%emt 0:00:02]} 0-1

[Event "Queens Festival Final Team 2022"]
[Site "Tornelo"]
[Date "2022.06.26"]
[Round "11.1"]
[White "Agajanova, Meryem"]
[Black "Posadas, Rayelynn"]
[Result "1-0"]
[ECO "D77"]
[WhiteElo "1783"]
[BlackElo "1648"]
[Annotator "NA RC"]
[PlyCount "143"]
[EventDate "2022.06.24"]
[EventType "team-tourn"]
[EventCountry "NET"]
[SourceTitle "playchess.com"]
[Source "ChessBase"]
[SourceQuality "1"]
[WhiteTeam "Turkmenistan"]
[BlackTeam "England"]
[WhiteTeamCountry "TKM"]
[BlackTeamCountry "ENG"]
[TimeControl "180+2"]

1. d4 {[%emt 0:00:02]} Nf6 {[%emt 0:00:05]} 2. Nf3 {[%emt 0:00:02]} g6 {[%emt 0:00:01]} 3. c4 {[%emt 0:00:01]} Bg7 {[%emt 0:00:01]} 4. g3 {[%emt 0:00:02]} O-O {[%emt 0:00:01]} 5. Bg2 {[%emt 0:00:01]} d5 {[%emt 0:00:00]} 6. O-O {[%emt 0:00:03]} c5 {[%emt 0:00:02]} 7. dxc5 {[%emt 0:00:13]} dxc4 {[%emt 0:00:08]} 8. Qc2 {[%emt 0:00:06]} Bg4 {[%emt 0:00:11]} 9. Qxc4 {[%emt 0:00:10]} Nc6 {[%emt 0:00:04]} 10. Bf4 {[%emt 0:00:14]} Nd5 {[%emt 0:00:05]} 11. Nc3 {[%emt 0:01:01]} Nxc3 {[%emt 0:00:11]} 12. bxc3 {[%emt 0:00:01]} Be6 {[%emt 0:00:03]} 13. Qb5 {[%emt 0:00:13]} Na5 {[%emt 0:00:52]} 14. Rfd1 {[%emt 0:00:08]} Qc8 {[%emt 0:00:03]} 15. Qxa5 {[%emt 0:00:05]} h5 {[%emt 0:00:13]} 16. Qc7 {[%emt 0:00:13]} Qxc7 {[%emt 0:00:03]} 17. Bxc7 {[%emt 0:00:02]} Rac8 {[%emt 0:00:02]} 18. Be5 {[%emt 0:00:07]} Rxc5 {[%emt 0:00:05]} 19. Bd4 {[%emt 0:00:08]} Bxd4 {[%emt 0:00:05]} 20. cxd4 {[%emt 0:00:02]} Rc2 {[%emt 0:00:02]} 21. Rd2 {[%emt 0:00:04]} Rfc8 {[%emt 0:00:02]} 22. e3 {[%emt 0:00:32]} b6 {[%emt 0:00:04]} 23. h4 {[%emt 0:00:05]} Bg4 {[%emt 0:00:02]} 24. Rxc2 {[%emt 0:00:03]} Rxc2 {[%emt 0:00:00]} 25. Ne5 {[%emt 0:00:02]} Be6 {[%emt 0:00:04]} 26. a4 {[%emt 0:00:01]} a6 {[%emt 0:00:06]} 27. a5 {[%emt 0:00:02]} b5 {[%emt 0:00:02]} 28. d5 {[%emt 0:00:02]} Bc8 {[%emt 0:00:08]} 29. Nc6 {[%emt 0:00:01]} Kf8 {[%emt 0:00:03]} 30. Nd4 {[%emt 0:00:04]} Rc3 {[%emt 0:00:08]} 31. Be4 {[%emt 0:00:02]} b4 {[%emt 0:00:02]} 32. Rb1 {[%emt 0:00:02]} f5 {[%emt 0:00:04]} 33. Bf3 {[%emt 0:00:02]} Ra3 {[%emt 0:00:07]} 34. Nc6 {[%emt 0:00:03]} b3 {[%emt 0:00:04]} 35. Bd1 {[%emt 0:00:01]} e6 {[%emt 0:00:14]} 36. Bxb3 {[%emt 0:00:02]} Bd7 {[%emt 0:00:05]} 37. Ne5 {[%emt 0:00:02]} Be8 {[%emt 0:00:10]} 38. dxe6 {[%emt 0:00:02]} Rxa5 {[%emt 0:00:01]} 39. Nd7+ {[%emt 0:00:02]} Ke7 {[%emt 0:00:08]} 40. Nb6 {[%emt 0:00:01]} Rb5 {[%emt 0:00:04]} 41. Nd5+ {[%emt 0:00:03]} Kd6 {[%emt 0:00:05]} 42. Nc3 {[%emt 0:00:02]} Rb8 {[%emt 0:00:04]} 43. Bc4 {[%emt 0:00:02]} Rc8 {[%emt 0:00:04]} 44. Rb4 {[%emt 0:00:06]} a5 {[%emt 0:00:01]} 45. Rb6+ {[%emt 0:00:05]} Kc5 {[%emt 0:00:02]} 46. Ra6 {[%emt 0:00:02]} Kxc4 {[%emt 0:00:03]} 47. Nd5 {[%emt 0:00:01]} Kxd5 {[%emt 0:00:01]} 48. e7 {[%emt 0:00:02]} Rc5 {[%emt 0:00:12]} 49. Rf6 {[%emt 0:00:02]} Ke5 {[%emt 0:00:09]} 50. Rf8 {[%emt 0:00:02]} Rc1+ {[%emt 0:00:01]} 51. Kg2 {[%emt 0:00:02]} Bc6+ {[%emt 0:00:02]} 52. f3 {[%emt 0:00:02]} Rc2+ {[%emt 0:00:01]} 53. Kf1 {[%emt 0:00:01]} Bb5+ {[%emt 0:00:05]} 54. Ke1 {[%emt 0:00:03]} Rc1+ {[%emt 0:00:02]} 55. Kd2 {[%emt 0:00:01]} Rc7 {[%emt 0:00:01]} 56. e8=Q+ {[%emt 0:00:02]} Bxe8 {[%emt 0:00:01]} 57. Rxe8+ {[%emt 0:00:01]} Kf6 {[%emt 0:00:00]} 58. Ra8 {[%emt 0:00:02]} Rc5 {[%emt 0:00:02]} 59. Kd3 {[%emt 0:00:01]} g5 {[%emt 0:00:02]} 60. Kd4 {[%emt 0:00:02]} Rc6 {[%emt 0:00:02]} 61. Rxa5 {[%emt 0:00:01]} gxh4 {[%emt 0:00:01]} 62. gxh4 {[%emt 0:00:02]} Rb6 {[%emt 0:00:00]} 63. Kd3 {[%emt 0:00:02]} Rb4 {[%emt 0:00:05]} 64. Ra6+ {[%emt 0:00:01]} Ke5 {[%emt 0:00:01]} 65. f4+ {[%emt 0:00:02]} Kd5 {[%emt 0:00:01]} 66. Rh6 {[%emt 0:00:01]} Rb3+ {[%emt 0:00:02]} 67. Ke2 {[%emt 0:00:02]} Ke4 {[%emt 0:00:00]} 68. Re6+ {[%emt 0:00:02]} Kd5 {[%emt 0:00:03]} 69. Re5+ {[%emt 0:00:01]} Kd6 {[%emt 0:00:03]} 70. Rxf5 {[%emt 0:00:02]} Rb2+ {[%emt 0:00:02]} 71. Kf3 {[%emt 0:00:01]} Rb1 {[%emt 0:00:02]} 72. Rxh5 {[%emt 0:00:01]} 1-0

[Event "Queens Festival Final Team 2022"]
[Site "Tornelo"]
[Date "2022.06.26"]
[Round "11.2"]
[White "Masoumi, Sahar"]
[Black "Mwendwa, Triza"]
[Result "1-0"]
[ECO "D10"]
[WhiteElo "2004"]
[BlackElo "1470"]
[Annotator "NA RC"]
[PlyCount "61"]
[EventDate "2022.06.24"]
[EventType "team-tourn"]
[EventCountry "NET"]
[SourceTitle "playchess.com"]
[Source "ChessBase"]
[SourceQuality "1"]
[WhiteTeam "Iran"]
[BlackTeam "Kenya"]
[WhiteTeamCountry "IRI"]
[BlackTeamCountry "KEN"]
[TimeControl "180+2"]

1. d4 {[%emt 0:00:02]} d5 {[%emt 0:00:05]} 2. c4 {[%emt 0:00:02]} c6 {[%emt 0:00:01]} 3. Nc3 {[%emt 0:00:02]} Nf6 {[%emt 0:00:04]} 4. cxd5 {[%emt 0:00:04]} cxd5 {[%emt 0:00:05]} 5. Bf4 {[%emt 0:00:03]} Nc6 {[%emt 0:00:05]} 6. e3 {[%emt 0:00:01]} Bf5 {[%emt 0:00:06]} 7. Rc1 {[%emt 0:00:03]} e6 {[%emt 0:00:02]} 8. Qb3 {[%emt 0:00:05]} Qd7 {[%emt 0:00:13]} 9. Nf3 {[%emt 0:00:04]} Bd6 {[%emt 0:00:03]} 10. Ne5 {[%emt 0:00:04]} Bxe5 {[%emt 0:00:06]} 11. Bxe5 {[%emt 0:00:02]} O-O {[%emt 0:00:04]} 12. Bxf6 {[%emt 0:00:07]} gxf6 {[%emt 0:00:02]} 13. g4 {[%emt 0:00:02]} Bg6 {[%emt 0:00:06]} 14. h4 {[%emt 0:00:02]} h6 {[%emt 0:00:06]} 15. Be2 {[%emt 0:00:06]} f5 {[%emt 0:00:06]} 16. g5 {[%emt 0:00:04]} h5 {[%emt 0:00:02]} 17. Qd1 {[%emt 0:00:02]} Kh7 {[%emt 0:00:12]} 18. Bxh5 {[%emt 0:00:02]} e5 {[%emt 0:00:06]} 19. dxe5 {[%emt 0:00:09]} Nxe5 {[%emt 0:00:05]} 20. Nxd5 {[%emt 0:00:06]} Kg7 {[%emt 0:01:15]} 21. Be2 {[%emt 0:00:04]} Rad8 {[%emt 0:00:05]} 22. Nf6 {[%emt 0:00:15]} Nd3+ {[%emt 0:00:19]} 23. Bxd3 {[%emt 0:00:07]} Qxd3 {[%emt 0:00:03]} 24. Qxd3 {[%emt 0:00:02]} Rxd3 {[%emt 0:00:03]} 25. Ke2 {[%emt 0:00:16]} Rfd8 {[%emt 0:00:03]} 26. Rhd1 {[%emt 0:00:04]} f4 {[%emt 0:00:12]} 27. Rxd3 {[%emt 0:00:23]} f3+ {[%emt 0:00:07]} 28. Kxf3 {[%emt 0:00:05]} Rxd3 {[%emt 0:00:04]} 29. Ke2 {[%emt 0:00:02]} Rd8 {[%emt 0:00:08]} 30. Rc7 {[%emt 0:00:04]} Rh8 {[%emt 0:00:02]} 31. Rc4 {[%emt 0:00:15]} 1-0